[Event "Charlotte Open 2024"]
[Site "Charlotte"]
[Date "2024.01.15"]
[Round "5.5"]
[White "Kantor, Gergely"]
[Black "Zapata, Alonso"]
[Result "1-0"]
[ECO "B90"]
[WhiteElo "2531"]
[BlackElo "2313"]
[Annotator "TA"]
[PlyCount "131"]
[EventDate "2024.01.05"]
[EventType "swiss"]
[EventCountry "USA"]
[SourceTitle "playchess.com"]
[Source "ChessBase"]
[SourceQuality "1"]
[TimeControl "6600+10"]

{[%evp 15,131,14,11,15,12,8,29,31,19,1,58,58,55,44,77,54,70,75,120,109,119,118,131,137,126,165,159,169,145,168,161,150,274,293,279,250,359,362,379,375,388,227,246,232,239,254,218,192,191,191,194,138,142,143,139,149,133,138,213,213,209,210,212,222,200,142,155,135,354,354,358,337,351,306,397,338,583,568,569,451,456,0,0,0,0,0,0,0,0,0,0,0,0,0,0,0,0,0,0,0,0,0,0,-115,0,0,12844,12843,12845,12842,12843,12844,12844,12845,12845,12843,12841,12842]} 1. e4 {[%emt 0:05:10]} c5 {[%emt 0:00:13]} 2. Nf3 {[%emt 0:00:02][%cal Bg1f3,Bf3d4,Bd4e2,Be2g3][%mdl 32]} d6 {[%emt 0:00:46]} 3. d4 {[%emt 0:00:22]} cxd4 {[%emt 0:00:05]} 4. Nxd4 {[%emt 0:00:02]} Nf6 {[%emt 0:00:07]} 5. Nc3 {[%emt 0:00:04]} a6 {[%emt 0:00:03]} 6. Bd3 {[%emt 0:00:11]} e5 {[%emt 0:00:31]} 7. Nde2 {[%emt 0:00:09]} Be7 {[%emt 0:01:00]} 8. O-O {[%emt 0:00:28]} O-O {[%emt 0:01:16]} 9. Ng3 {[%emt 0:00:07] B90: Sicilian Najdorf: Unusual White 6th moves, 6 Be3 Ng4 and 6 Be3 e5.} Be6 {[%emt 0:01:40] [#]} 10. Nd5 $1 {[%emt 0:01:14]} Nbd7 {[%emt 0:00:50]} (10... Bxd5 11. exd5) 11. c4 {[%emt 0:07:08] White has an edge.} Nc5 {[%emt 0:08:38]} 12. Bc2 {[%emt 0:01:57] [#]} (12. Be3 {feels hotter.} Nxd3 13. Bb6 Qd7 14. Qxd3 Rfc8 15. a4) 12... a5 $146 {[%emt 0:00:49]} (12... b5 $11) ({Predecessor:} 12... b5 13. b4 Ncd7 14. cxb5 axb5 15. Bd3 Nb6 16. Nxe7+ Qxe7 17. Bxb5 d5 18. a4 Nxe4 19. Nxe4 dxe4 {1-0 Pranesh,M (2438)-Iniyan,P (2534) Commonwealth-ch 2022 (5)}) 13. Nxe7+ $14 {[%emt 0:04:12]} Qxe7 {[%emt 0:00:16]} 14. b3 {[%emt 0:00:26]} Rfd8 {[%emt 0:18:02]} 15. h3 {[%emt 0:04:56]} a4 {[%emt 0:08:15]} 16. Be3 {[%emt 0:07:22]} b5 {[%emt 0:06:17]} 17. cxb5 {[%emt 0:18:53][%cal Rb3a4]} axb3 {[%emt 0:25:02]} 18. axb3 {[%emt 0:01:21]} Rab8 {[%emt 0:00:06]} 19. b4 {[%emt 0:10:15]} Ncd7 {[%emt 0:00:13]} 20. Qd3 {[%emt 0:03:30]} d5 {[%emt 0:08:37]} 21. exd5 {[%emt 0:01:04]} Bxd5 {[%emt 0:00:08]} 22. Rfb1 {[%emt 0:06:54]} Rdc8 {[%emt 0:11:06]} 23. Ra7 {[%emt 0:05:08]} Bc4 {[%emt 0:00:55]} (23... g6 $16 {might work better.} 24. Bg5 Qe6) 24. Nf5 $18 {[%emt 0:03:00]} Qe6 {[%emt 0:00:35]} 25. Qd6 {[%emt 0:01:05]} Re8 {[%emt 0:01:37] Inhibits Ne7+. Black is weak on the dark squares} (25... Kh8 $142) 26. Rd1 {[%emt 0:10:10]} Bxb5 {[%emt 0:05:05]} 27. Qxe6 {[%emt 0:00:07]} Rxe6 {[%emt 0:00:57]} 28. Bb3 {[%emt 0:00:10] This pair of bishops is nice.} (28. Nd6 $142 {Strongly threatening Nxb5.} Be2 29. Rd2) 28... Ra6 {[%emt 0:00:17]} 29. Nd6 {[%emt 0:00:11]} Be2 {[%emt 0:02:22] Hoping for ...Rxa7.} 30. Rxa6 {[%emt 0:08:56]} (30. Bxf7+ Kf8) 30... Bxa6 {[%emt 0:00:02]} 31. Ra1 {[%emt 0:01:41]} Bd3 {[%emt 0:00:20]} 32. b5 {[%emt 0:01:44]} Kf8 {[%emt 0:00:57]} 33. b6 {[%emt 0:02:15]} (33. Bxf7 Ke7 34. Bc4 Bxc4 35. Nxc4 Rxb5 $14) (33. Nxf7 Rxb5 34. Be6 Ke7 35. Bxd7 Nxd7 $11) ({White should play} 33. Ba7 $18) 33... Ke7 $16 {[%emt 0:00:40]} 34. Nxf7 {[%emt 0:00:14] White is more active.} Bg6 {[%emt 0:00:36]} 35. Ng5 {[%emt 0:01:26]} h6 {[%emt 0:00:24]} 36. Nf3 $36 {[%emt 0:00:25][%mdl 2048] White is in control.} Be4 {[%emt 0:00:09]} (36... Bf7 $16) 37. Ra7 $18 {[%emt 0:00:16]} Kd6 {[%emt 0:00:54]} 38. Nd2 {[%emt 0:00:24]} Bd5 {[%emt 0:00:16]} 39. Bxd5 {[%emt 0:00:36]} Kxd5 {[%emt 0:00:13]} 40. b7 {[%emt 0:00:30] aiming for Nb3.} Kc6 {[%emt 0:02:19]} 41. Nc4 {[%emt 0:00:01] And now Na5+ would win.} Kc7 $2 {[%emt 0:00:17] [#]} (41... Nd5 $16 42. Na5+ Kb5) 42. Na5 $1 {[%emt 0:00:26]} Nd5 {[%emt 0:00:01]} 43. Ra6 {[%emt 0:00:36]} N5b6 {[%emt 0:02:10]} 44. g4 {[%emt 0:00:15]} g6 {[%emt 0:01:01]} 45. Kg2 {[%emt 0:00:12] f4 is the strong threat.} (45. Bxh6 Rh8 $18) 45... h5 $2 {[%emt 0:00:02]} (45... Rg8 46. Ra7 Nb8 47. Bxh6 Nd5) 46. Kg3 {[%emt 0:00:16]} hxg4 {[%emt 0:00:28]} 47. hxg4 {[%emt 0:02:09]} g5 {[%emt 0:00:14]} 48. Bxg5 $2 {[%emt 0:00:00]} (48. Ra7 $18) 48... Nc5 $1 $11 {[%emt 0:00:07][%csl LRa6,LRb7]} 49. Ra7 {[%emt 0:00:00]} Ne4+ {[%emt 0:00:12]} (49... Nxb7 $2 50. Bf6 Nd7 51. g5 $18) 50. Kh3 {[%emt 0:00:00] Threatens to win with Be3.} Nxg5+ {[%emt 0:00:09]} 51. Kh4 {[%emt 0:00:00]} Ne4 {[%emt 0:00:14][%cal Rb8h8]} 52. g5 {[%emt 0:00:00]} Nxf2 {[%emt 0:00:56]} 53. g6 {[%emt 0:00:00]} Ne4 {[%emt 0:00:01]} 54. g7 {[%emt 0:00:00]} Nd6 {[%emt 0:00:13]} 55. Kg5 {[%emt 0:00:00] Prevents Nf5} e4 {[%emt 0:00:05][%cal Oe4e3]} (55... Nxb7 56. Rxb7+ Rxb7 57. Nxb7 (57. g8=R Rb8 $11) 57... Kxb7 58. g8=Q (58. g8=R Kc6 $14) 58... Kc6 59. Kf5 Kc5 60. Qg1+ Kc6 61. Kxe5) (55... Nb5 $5 56. Ra6 $8 Nd4 $11) 56. Kf4 {[%emt 0:00:00]} Nb5 {[%emt 0:00:18]} (56... Nxb7 57. Rxb7+ Rxb7 58. g8=Q $18 (58. g8=R Nd5+ 59. Kxe4 Rb5 $11)) 57. Ra6 {[%emt 0:00:00]} Nc3 {[%emt 0:00:03]} 58. Ke3 {[%emt 0:00:21]} Rd8 {[%emt 0:00:14]} 59. Nb3 {[%emt 0:00:55]} (59. Ra7 $11 Nbd5+ 60. Kf2) 59... Nc4+ {[%emt 0:00:16]} ({Stronger than} 59... Kxb7 60. Nc5+ Kc6 61. Nxe4 $15) (59... Nbd5+ $17 60. Kf2 e3+ 61. Kf3 e2) 60. Kf4 {[%emt 0:00:09] Ra8 would be deadly. Chess con chili.} e3 $2 {[%emt 0:00:13][%mdl 8192] [#]} (60... Kxb7 $11 61. Nc5+ Kb8) 61. Ra8 $1 $18 {[%emt 0:00:05] White is clearly winning.} Nd5+ {[%emt 0:00:09]} 62. Kf3 {[%emt 0:00:03]} Nd2+ {[%emt 0:00:01]} 63. Ke2 {[%emt 0:00:07]} Nc3+ {[%emt 0:00:38]} 64. Kxe3 {[%emt 0:00:02]} Nc4+ {[%emt 0:00:00]} 65. Kf3 {[%emt 0:00:06]} Ne5+ {[%emt 0:00:00]} 66. Kg3 {[%emt 0:00:03] Excellently played by Kantor!   Weighted Error Value: White=0.26 (precise) /Black=0.29 (precise)} 1-0

[Event "Charlotte Open 2024"]
[Site "Charlotte"]
[Date "2024.01.15"]
[Round "5.6"]
[White "Kraai, Jesse"]
[Black "Titus, Andrew"]
[Result "1/2-1/2"]
[ECO "D02"]
[WhiteElo "2375"]
[BlackElo "2202"]
[Annotator "ChessBase"]
[PlyCount "57"]
[EventDate "2024.01.05"]
[EventType "swiss"]
[EventCountry "USA"]
[SourceTitle "playchess.com"]
[Source "ChessBase"]
[SourceQuality "1"]
[TimeControl "6600+10"]

1. d4 {[%emt 0:00:03]} d5 {[%emt 0:06:15]} 2. Nf3 {[%emt 0:00:10]} Nf6 {[%emt 0:00:06]} 3. Bf4 {[%emt 0:00:06]} e6 {[%emt 0:00:03]} 4. e3 {[%emt 0:00:09]} Bd6 {[%emt 0:00:03]} 5. Bxd6 {[%emt 0:00:09]} cxd6 {[%emt 0:05:15]} 6. c4 {[%emt 0:00:09]} dxc4 {[%emt 0:00:02]} 7. Bxc4 {[%emt 0:00:10]} O-O {[%emt 0:00:28]} 8. O-O {[%emt 0:00:10]} b6 {[%emt 0:03:04]} 9. Nc3 {[%emt 0:01:01]} Bb7 {[%emt 0:02:50]} 10. Qe2 {[%emt 0:07:03]} Nc6 {[%emt 0:10:43]} 11. Rac1 {[%emt 0:05:34]} Ne7 {[%emt 0:07:42]} 12. Ba6 {[%emt 0:05:55]} Bxa6 {[%emt 0:08:05]} 13. Qxa6 {[%emt 0:00:11]} Ned5 {[%emt 0:00:05]} 14. Nxd5 {[%emt 0:10:57]} Nxd5 {[%emt 0:00:16]} 15. Rc4 {[%emt 0:00:13]} Qd7 {[%emt 0:09:19]} 16. g3 {[%emt 0:06:39]} Rfc8 {[%emt 0:01:01]} 17. Rfc1 {[%emt 0:00:27]} Ne7 {[%emt 0:00:08]} 18. Rxc8+ {[%emt 0:17:24]} Rxc8 {[%emt 0:00:42]} 19. Rxc8+ {[%emt 0:00:03]} Nxc8 {[%emt 0:00:11]} 20. d5 {[%emt 0:01:32]} exd5 {[%emt 0:11:59]} 21. Nd4 {[%emt 0:00:07]} Ne7 {[%emt 0:00:26]} 22. Qb5 {[%emt 0:02:46]} Qc8 {[%emt 0:01:15]} 23. Qa4 {[%emt 0:02:54]} a6 {[%emt 0:00:32]} 24. Qa3 {[%emt 0:00:59]} Nf5 {[%emt 0:02:28]} 25. Nxf5 {[%emt 0:07:28]} Qxf5 {[%emt 0:00:05]} 26. Qxd6 {[%emt 0:01:03]} Qb1+ {[%emt 0:01:15]} 27. Kg2 {[%emt 0:00:05]} Qe4+ {[%emt 0:00:04]} 28. Kg1 {[%emt 0:01:49]} Qb1+ {[%emt 0:00:18]} 29. Kg2 {[%emt 0:00:16]} 1/2-1/2

[Event "Charlotte Open 2024"]
[Site "Charlotte"]
[Date "2024.01.15"]
[Round "5.7"]
[White "Abrahamyan, Tatev"]
[Black "Prabhu, Naveen"]
[Result "0-1"]
[ECO "B12"]
[WhiteElo "2311"]
[BlackElo "2103"]
[Annotator "ChessBase"]
[PlyCount "60"]
[EventDate "2024.01.05"]
[EventType "swiss"]
[EventCountry "USA"]
[SourceTitle "playchess.com"]
[Source "ChessBase"]
[SourceQuality "1"]
[TimeControl "6600+10"]

1. e4 {[%emt 0:01:39]} c6 {[%emt 0:00:09]} 2. d4 {[%emt 0:00:34]} d5 {[%emt 0:00:09]} 3. f3 {[%emt 0:00:05]} Qb6 {[%emt 0:00:35]} 4. Nc3 {[%emt 0:00:52]} dxe4 {[%emt 0:01:04]} 5. fxe4 {[%emt 0:01:05]} e5 {[%emt 0:00:14]} 6. Nf3 {[%emt 0:08:32]} exd4 {[%emt 0:00:30]} 7. Nxd4 {[%emt 0:09:29]} h5 {[%emt 0:03:50]} 8. Bc4 {[%emt 0:13:18]} Bg4 {[%emt 0:12:20]} 9. Nf3 {[%emt 0:06:50]} Nd7 {[%emt 0:04:07]} 10. h3 {[%emt 0:07:44]} Be6 {[%emt 0:03:41]} 11. Bxe6 {[%emt 0:02:27]} fxe6 {[%emt 0:00:07]} 12. Ng5 {[%emt 0:02:51]} O-O-O {[%emt 0:07:39]} 13. Nf7 {[%emt 0:19:05]} Be7 {[%emt 0:03:48]} 14. Qe2 {[%emt 0:01:02]} Bh4+ {[%emt 0:14:46]} 15. Kd1 {[%emt 0:01:06]} Ngf6 {[%emt 0:01:35]} 16. Bd2 {[%emt 0:06:10]} Ne5 {[%emt 0:14:18]} 17. Nxd8 {[%emt 0:00:44]} Rxd8 {[%emt 0:00:21]} 18. Kc1 {[%emt 0:01:06]} Rxd2 {[%emt 0:05:57]} 19. Qxd2 {[%emt 0:15:50]} Nc4 {[%emt 0:00:09]} 20. Na4 {[%emt 0:00:02]} Qb5 {[%emt 0:00:48]} 21. Qd3 {[%emt 0:00:16]} Bg5+ {[%emt 0:02:12]} 22. Kb1 {[%emt 0:00:55]} Nd2+ {[%emt 0:00:33]} 23. Kc1 {[%emt 0:00:01]} Ndxe4+ {[%emt 0:03:58]} 24. Kb1 {[%emt 0:00:05]} Nd2+ {[%emt 0:00:06]} 25. Kc1 {[%emt 0:00:02]} Qxa4 {[%emt 0:00:36]} 26. Rd1 {[%emt 0:01:28]} Nfe4 {[%emt 0:01:26]} 27. a3 {[%emt 0:02:09]} Nf2 {[%emt 0:02:40]} 28. Qe2 {[%emt 0:05:35]} Nde4+ {[%emt 0:00:22]} 29. Kb1 {[%emt 0:00:03]} Nxd1 {[%emt 0:00:07]} 30. Qxd1 {[%emt 0:00:03]} Qc4 {[%emt 0:00:32]} 0-1

[Event "Charlotte Open 2024"]
[Site "Charlotte"]
[Date "2024.01.15"]
[Round "5.8"]
[White "Belenkaya, Dina"]
[Black "Bynum, Jacorey"]
[Result "1/2-1/2"]
[ECO "B29"]
[WhiteElo "2202"]
[BlackElo "1664"]
[Annotator "NA"]
[PlyCount "141"]
[EventDate "2024.01.05"]
[EventType "swiss"]
[EventCountry "USA"]
[SourceTitle "playchess.com"]
[Source "ChessBase"]
[SourceQuality "1"]
[TimeControl "6600+10"]

1. e4 {[%emt 0:04:39]} c5 {[%emt 0:00:06]} 2. Nc3 {[%emt 0:00:09]} Nc6 {[%emt 0:00:15]} 3. Nf3 {[%emt 0:00:43]} Nf6 {[%emt 0:01:48]} 4. g3 {[%emt 0:05:30]} d5 {[%emt 0:02:56]} 5. exd5 {[%emt 0:02:24]} Nxd5 {[%emt 0:00:14]} 6. Bg2 {[%emt 0:00:36]} e6 {[%emt 0:00:57]} 7. O-O {[%emt 0:00:24]} Be7 {[%emt 0:00:11]} 8. Re1 {[%emt 0:05:56]} O-O {[%emt 0:06:49]} 9. d3 {[%emt 0:04:09]} Rb8 {[%emt 0:13:44]} 10. a4 {[%emt 0:07:36]} b6 {[%emt 0:05:30]} 11. h4 {[%emt 0:21:45]} Bb7 {[%emt 0:02:03]} 12. Nxd5 {[%emt 0:03:05]} exd5 {[%emt 0:01:39]} 13. Bf4 {[%emt 0:01:20]} Bd6 {[%emt 0:01:01]} 14. Bxd6 {[%emt 0:00:27]} Qxd6 {[%emt 0:00:11]} 15. d4 {[%emt 0:01:27]} Rbd8 {[%emt 0:26:22]} 16. c3 {[%emt 0:01:23]} Rfe8 {[%emt 0:20:42]} 17. Qd3 {[%emt 0:04:14]} c4 {[%emt 0:02:54]} 18. Qc2 {[%emt 0:00:54]} Bc8 {[%emt 0:00:39]} 19. Ng5 {[%emt 0:04:07]} g6 {[%emt 0:00:10]} 20. h5 {[%emt 0:03:38]} Bf5 {[%emt 0:01:14]} 21. Qd2 {[%emt 0:05:14]} gxh5 {[%emt 0:00:42]} 22. Nh3 {[%emt 0:06:23]} Bxh3 {[%emt 0:03:36]} 23. Bxh3 {[%emt 0:00:21]} h6 {[%emt 0:00:42]} 24. Kg2 {[%emt 0:04:59]} h4 {[%emt 0:05:55]} 25. Bf5 {[%emt 0:00:51]} Ne7 {[%emt 0:00:43]} 26. Bc2 {[%emt 0:03:25]} hxg3 {[%emt 0:00:23]} 27. Rh1 {[%emt 0:04:12]} Kg7 {[%emt 0:00:12]} 28. Rag1 {[%emt 0:02:06]} Ng8 {[%emt 0:01:09]} 29. Kf1 {[%emt 0:00:28]} Re6 {[%emt 0:00:02]} 30. Rxg3+ {[%emt 0:00:43]} Kf8 {[%emt 0:00:29]} 31. Bh7 {[%emt 0:04:56]} Ne7 {[%emt 0:00:19]} 32. Rh5 {[%emt 0:00:33]} Rf6 {[%emt 0:01:50]} 33. Re5 {[%emt 0:00:27]} Ke8 {[%emt 0:01:18]} 34. Rge3 {[%emt 0:01:30]} Rd7 {[%emt 0:01:21]} 35. Bf5 {[%emt 0:01:20]} Rc7 {[%emt 0:00:05]} 36. Qe2 {[%emt 0:00:17]} Kf8 {[%emt 0:00:05]} 37. Bc2 {[%emt 0:01:17]} Ng6 {[%emt 0:01:37]} 38. Qh5 {[%emt 0:00:20]} Kg7 {[%emt 0:00:51]} 39. Rh3 {[%emt 0:00:36]} Nf4 {[%emt 0:01:10]} 40. Qg4+ {[%emt 0:00:42]} Kf8 {[%emt 0:00:01]} 41. Bh7 {[%emt 0:00:48]} Ne6 {[%emt 0:00:21]} 42. Rhe3 {[%emt 0:00:27]} Ke8 {[%emt 0:02:08]} 43. Bf5 {[%emt 0:00:25]} Kd7 {[%emt 0:00:47]} 44. Qh4 {[%emt 0:00:25]} Ke7 {[%emt 0:00:05]} 45. Bh3 {[%emt 0:00:08]} Qd8 {[%emt 0:01:16]} 46. Rf3 {[%emt 0:00:09]} Qh8 {[%emt 0:00:09]} 47. Rff5 {[%emt 0:00:15]} Rc6 {[%emt 0:00:27]} 48. Rf4 {[%emt 0:00:04]} Qg7 {[%emt 0:00:14]} 49. Rf3 {[%emt 0:00:01]} Qg6 {[%emt 0:00:08]} 50. Bf5 {[%emt 0:00:11]} Qg5 {[%emt 0:00:01]} 51. Qxg5 {[%emt 0:00:11]} hxg5 {[%emt 0:00:01]} 52. Rxd5 {[%emt 0:00:10]} Nf4 {[%emt 0:00:16]} 53. Re3+ {[%emt 0:00:04]} Kf8 {[%emt 0:00:07]} 54. Rde5 {[%emt 0:00:02]} Rcd6 {[%emt 0:00:14]} 55. f3 {[%emt 0:00:25]} Rh6 {[%emt 0:00:07]} 56. Bg4 {[%emt 0:00:09]} Rh1+ {[%emt 0:00:04]} 57. Kf2 {[%emt 0:00:02]} Rh2+ {[%emt 0:00:16]} 58. Kg1 {[%emt 0:00:04]} Rxb2 {[%emt 0:00:01]} 59. Rxg5 {[%emt 0:00:16]} Rh6 {[%emt 0:00:20]} 60. Bd7 {[%emt 0:00:33]} Ne2+ {[%emt 0:00:24]} 61. Kf2 {[%emt 0:00:00]} Nxd4+ {[%emt 0:00:02]} 62. Kg3 {[%emt 0:00:07]} Ne6 {[%emt 0:00:01]} 63. Rg4 {[%emt 0:00:16]} Rhh2 {[%emt 0:00:34]} 64. Bxe6 {[%emt 0:00:04]} Rbg2+ {[%emt 0:00:02]} 65. Kf4 {[%emt 0:00:03]} fxe6 {[%emt 0:00:01]} 66. Rxe6 {[%emt 0:00:07]} Rxg4+ {[%emt 0:00:04]} 67. fxg4 {[%emt 0:00:14]} Ra2 {[%emt 0:00:03]} 68. g5 {[%emt 0:00:12]} Rxa4 {[%emt 0:01:22]} 69. Rc6 {[%emt 0:00:07]} Kg7 {[%emt 0:00:00]} 70. Rc7+ {[%emt 0:00:04]} Kg6 {[%emt 0:00:00]} 71. Rc6+ {[%emt 0:00:01]} 1/2-1/2

[Event "Charlotte Open 2024"]
[Site "Charlotte"]
[Date "2024.01.15"]
[Round "5.9"]
[White "Heck, Nathan"]
[Black "Botez, Andrea"]
[Result "0-1"]
[ECO "B34"]
[WhiteElo "1586"]
[BlackElo "1709"]
[Annotator "NA"]
[PlyCount "100"]
[EventDate "2024.01.05"]
[EventType "swiss"]
[EventCountry "USA"]
[SourceTitle "playchess.com"]
[Source "ChessBase"]
[SourceQuality "1"]
[TimeControl "6600+10"]

1. e4 {[%emt 0:11:42]} c5 {[%emt 0:10:16]} 2. Nf3 {[%emt 0:00:34]} g6 {[%emt 0:00:15]} 3. d4 {[%emt 0:01:09]} cxd4 {[%emt 0:00:13]} 4. Nxd4 {[%emt 0:00:18]} Bg7 {[%emt 0:00:20]} 5. Nc3 {[%emt 0:01:03]} Nc6 {[%emt 0:00:17]} 6. Be3 {[%emt 0:01:30]} Nf6 {[%emt 0:03:03]} 7. Be2 {[%emt 0:02:03]} O-O {[%emt 0:00:32]} 8. O-O {[%emt 0:01:12]} d5 {[%emt 0:07:09]} 9. exd5 {[%emt 0:03:22]} Nxd5 {[%emt 0:02:34]} 10. Nxd5 {[%emt 0:01:26]} Nxd4 {[%emt 0:00:18]} 11. Bxd4 {[%emt 0:01:27]} Qxd5 {[%emt 0:00:11]} 12. Bxg7 {[%emt 0:00:32]} Qxd1 {[%emt 0:00:05]} 13. Raxd1 {[%emt 0:00:59]} Kxg7 {[%emt 1:27:07]} 14. Bf3 {[%emt 0:01:20]} Be6 {[%emt 0:00:00]} 15. a3 {[%emt 1:24:03]} Rac8 {[%emt 0:00:00]} 16. Rd2 {[%emt 0:00:00]} Bf5 {[%emt 0:00:00]} 17. c3 {[%emt 0:00:00]} b6 {[%emt 0:00:00]} 18. Re1 {[%emt 0:00:00]} Kf6 {[%emt 0:00:00]} 19. h3 Rfd8 {[%emt 0:00:00]} 20. Red1 Rxd2 {[%emt 0:01:10]} 21. Rxd2 {[%emt 0:01:00]} e5 {[%emt 0:00:00]} 22. g4 Be6 {[%emt 0:00:00]} 23. Kg2 h6 {[%emt 0:00:00]} 24. Be2 Ke7 {[%emt 0:00:40]} 25. Kg3 {[%emt 0:00:00]} g5 {[%emt 0:00:00]} 26. Bd1 {[%emt 0:00:00]} Rc6 {[%emt 0:00:00]} 27. Be2 {[%emt 0:00:00]} Rd6 {[%emt 0:00:00]} 28. Rxd6 {[%emt 0:00:00]} Kxd6 {[%emt 0:00:40]} 29. Kf3 {[%emt 0:00:00]} f5 {[%emt 0:00:10]} 30. gxf5 {[%emt 0:00:00]} Bxf5 {[%emt 0:00:00]} 31. Bf1 {[%emt 0:01:40]} b5 {[%emt 0:00:00]} 32. Ke3 {[%emt 0:00:00]} a6 {[%emt 0:00:00]} 33. Bg2 {[%emt 0:00:00]} Kc5 {[%emt 0:00:40]} 34. Bf1 {[%emt 0:00:00]} h5 {[%emt 0:00:00]} 35. Kf3 {[%emt 0:00:00]} e4+ {[%emt 0:00:00]} 36. Ke3 {[%emt 0:00:00]} Kd5 {[%emt 0:00:30]} 37. f3 {[%emt 0:00:00]} exf3 {[%emt 0:00:00]} 38. Kxf3 {[%emt 0:00:00]} Bxh3 {[%emt 0:00:00]} 39. Bd3 {[%emt 0:00:00]} Bc8 {[%emt 0:00:00]} 40. Kg3 {[%emt 0:00:00]} h4+ {[%emt 0:00:00]} 41. Kg2 {[%emt 0:00:00]} g4 {[%emt 0:00:00]} 42. b3 {[%emt 0:00:00]} Ke5 {[%emt 0:01:00]} 43. c4 {[%emt 0:00:00]} bxc4 {[%emt 0:00:00]} 44. Bxc4 {[%emt 0:00:00]} Bb7+ {[%emt 0:00:00]} 45. Kh2 Kd4 {[%emt 0:00:30]} 46. Be6 {[%emt 0:00:30]} g3+ {[%emt 0:00:00]} 47. Kg1 {[%emt 0:01:15]} Bd5 {[%emt 0:00:00]} 48. Bc8 {[%emt 0:00:35]} Bxb3 {[%emt 0:00:00]} 49. Bxa6 {[%emt 0:00:05]} h3 {[%emt 0:00:00]} 50. Bb7 {[%emt 0:00:10]} Bd5 {[%emt 0:00:00]} 0-1

[Event "Charlotte Open 2024"]
[Site "Charlotte"]
[Date "2024.01.15"]
[Round "5.11"]
[White "Kogen, Jonathan"]
[Black "Karthik, Advaith"]
[Result "1/2-1/2"]
[ECO "E18"]
[WhiteElo "2220"]
[BlackElo "2124"]
[Annotator "NA"]
[PlyCount "70"]
[EventDate "2024.01.05"]
[EventType "swiss"]
[EventCountry "USA"]
[SourceTitle "playchess.com"]
[Source "ChessBase"]
[SourceQuality "1"]
[TimeControl "6600+10"]

1. d4 {[%emt 0:00:02]} Nf6 {[%emt 0:09:35]} 2. Nf3 {[%emt 0:00:19]} e6 {[%emt 0:00:15]} 3. g3 {[%emt 0:00:10]} b6 {[%emt 0:00:22]} 4. Bg2 {[%emt 0:00:16]} Bb7 {[%emt 0:00:05]} 5. O-O {[%emt 0:00:11]} Be7 {[%emt 0:00:04]} 6. c4 {[%emt 0:00:13]} O-O {[%emt 0:00:07]} 7. Nc3 {[%emt 0:00:08]} Ne4 {[%emt 0:00:09]} 8. Qc2 {[%emt 0:00:36]} Nxc3 {[%emt 0:00:07]} 9. Qxc3 {[%emt 0:00:15]} Be4 {[%emt 0:00:20]} 10. b3 {[%emt 0:04:38]} Bf6 {[%emt 0:04:04]} 11. Bb2 {[%emt 0:00:32]} c5 {[%emt 0:02:45]} 12. Qd2 {[%emt 0:06:04]} d6 {[%emt 0:06:18]} 13. Rfd1 {[%emt 0:09:30]} Qe7 {[%emt 0:01:12]} 14. dxc5 {[%emt 0:06:19]} dxc5 {[%emt 0:00:06]} 15. Bxf6 {[%emt 0:19:08]} Qxf6 {[%emt 0:00:02]} 16. Qe3 {[%emt 0:00:21]} Bb7 {[%emt 0:00:28]} 17. Ne5 {[%emt 0:02:02]} Qe7 {[%emt 0:05:34]} 18. Bxb7 {[%emt 0:01:04]} Qxb7 {[%emt 0:00:01]} 19. Rd6 {[%emt 0:00:43]} f6 {[%emt 0:02:25]} 20. Nf3 {[%emt 0:06:06]} e5 {[%emt 0:00:34]} 21. Rad1 {[%emt 0:03:40]} Nc6 {[%emt 0:00:45]} 22. Rd7 {[%emt 0:00:55]} Qc8 {[%emt 0:00:59]} 23. Qe4 {[%emt 0:05:26]} Nd4 {[%emt 0:00:21]} 24. Qd5+ {[%emt 0:03:09]} Kh8 {[%emt 0:00:05]} 25. Nxd4 {[%emt 0:04:16]} exd4 {[%emt 0:00:31]} 26. e3 {[%emt 0:02:30]} dxe3 {[%emt 0:01:16]} 27. fxe3 {[%emt 0:00:14]} Qe8 {[%emt 0:00:31]} 28. e4 {[%emt 0:04:13]} Qg6 {[%emt 0:02:33]} 29. Qf5 {[%emt 0:06:20]} Qh6 {[%emt 0:02:25]} 30. Qf4 {[%emt 0:03:02]} Qg6 {[%emt 0:02:31]} 31. Re7 {[%emt 0:04:25]} Rae8 {[%emt 0:03:07]} 32. Rdd7 {[%emt 0:02:57]} Rxe7 {[%emt 0:00:24]} 33. Rxe7 {[%emt 0:00:15]} Re8 {[%emt 0:00:14]} 34. Qc7 {[%emt 0:05:46]} Rxe7 {[%emt 0:00:14]} 35. Qxe7 {[%emt 0:00:11]} h5 {[%emt 0:00:11]} 1/2-1/2

[Event "Charlotte Open 2024"]
[Site "Charlotte"]
[Date "2024.01.15"]
[Round "5.12"]
[White "Parker, Anthony"]
[Black "Foisor, Sabina-Francesca"]
[Result "0-1"]
[ECO "A03"]
[WhiteElo "1909"]
[BlackElo "2200"]
[Annotator "NA"]
[PlyCount "66"]
[EventDate "2024.01.05"]
[EventType "swiss"]
[EventCountry "USA"]
[SourceTitle "playchess.com"]
[Source "ChessBase"]
[SourceQuality "1"]
[TimeControl "6600+10"]

1. f4 {[%emt 0:08:49]} d5 {[%emt 0:02:10]} 2. Nf3 {[%emt 0:00:07]} c5 {[%emt 0:01:51]} 3. g3 {[%emt 0:00:29]} g6 {[%emt 0:00:34]} 4. Bg2 {[%emt 0:00:06]} Bg7 {[%emt 0:00:05]} 5. d3 {[%emt 0:00:08]} d4 {[%emt 0:03:26]} 6. O-O {[%emt 0:02:35]} Nh6 {[%emt 0:01:40]} 7. Nbd2 {[%emt 0:03:33]} O-O {[%emt 0:03:00]} 8. Ne4 {[%emt 0:03:34]} Qc7 {[%emt 0:04:02]} 9. c3 {[%emt 0:01:11]} Nd7 {[%emt 0:10:51]} 10. Qc2 {[%emt 0:03:09]} Qb6 {[%emt 0:06:51]} 11. Rb1 {[%emt 0:05:41]} Nf6 {[%emt 0:04:59]} 12. Nxf6+ {[%emt 0:01:48]} Bxf6 {[%emt 0:15:23]} 13. Nd2 {[%emt 0:00:12]} Be6 {[%emt 0:01:35]} 14. Nc4 {[%emt 0:05:46]} Qa6 {[%emt 0:05:32]} 15. b3 {[%emt 0:08:50]} dxc3 {[%emt 0:11:36]} 16. a4 {[%emt 0:20:26]} Rad8 {[%emt 0:02:49]} 17. Ne5 {[%emt 0:03:52]} Ng4 {[%emt 0:03:47]} 18. Nxg4 {[%emt 0:01:52]} Bxg4 {[%emt 0:00:09]} 19. h3 {[%emt 0:00:06]} Bd7 {[%emt 0:02:07]} 20. e4 {[%emt 0:02:10]} Bd4+ {[%emt 0:02:50]} 21. Kh2 {[%emt 0:01:37]} b5 {[%emt 0:01:08]} 22. axb5 {[%emt 0:03:03]} Bxb5 {[%emt 0:00:06]} 23. Rd1 {[%emt 0:00:03]} Rd7 {[%emt 0:03:07]} 24. e5 {[%emt 0:02:09]} Rfd8 {[%emt 0:01:31]} 25. Be4 {[%emt 0:00:05]} f6 {[%emt 0:01:27]} 26. h4 {[%emt 0:03:38]} Qe6 {[%emt 0:06:05]} 27. Rf1 {[%emt 0:00:30]} f5 {[%emt 0:00:23]} 28. Bg2 {[%emt 0:01:02]} Bxd3 {[%emt 0:01:00]} 29. Qa2 {[%emt 0:00:50]} c2 {[%emt 0:01:54]} 30. Rb2 {[%emt 0:00:03]} Bxb2 {[%emt 0:00:28]} 31. Qxb2 {[%emt 0:00:05]} Bxf1 {[%emt 0:00:11]} 32. Bxf1 {[%emt 0:00:03]} Rd2+ {[%emt 0:00:46]} 33. Kh3 {[%emt 0:00:08]} Qc6 {[%emt 0:00:15]} 0-1